bitfinex-derivatives/quotes_BTCF0:USTF0_20251011
["timestamp","ask_amount","ask_price","bid_price","bid_amount"]
[1760191729942,0.93570767,112270.0,112260.0,0.0889975]
[1760191730246,0.93570767,112270.0,112260.0,0.3041175]
[1760191730439,0.93570767,112270.0,112260.0,0.0889975]
[1760191730636,0.03678,112250.0,112240.0,0.08911373]
[1760191730835,0.93572357,112250.0,112240.0,0.00010283]
[1760191731141,0.84671687,112250.0,112240.0,0.31212216]
[1760191731342,0.84671687,112250.0,112240.0,0.30423743]
[1760191731644,0.84671687,112250.0,112240.0,0.7533743]
[1760191732246,0.84671687,112250.0,112240.0,0.5382543]
[1760191732440,0.39758,112250.0,112240.0,0.7533743]
[1760191732747,0.4865867,112250.0,112240.0,0.7533743]
[1760191733541,0.93572357,112250.0,112230.0,0.0890185]
[1760191733847,0.03678,112230.0,112220.0,0.0890265]
[1760191734044,0.39758,112230.0,112220.0,0.75328337]
[1760191734245,0.03678,112220.0,112210.0,0.09715161]
[1760191734445,0.03678,112220.0,112210.0,0.75333527]
[1760191734646,0.03678,112220.0,112210.0,0.76140021]
[1760191734647,0.03684562,112220.0,112210.0,0.76140021]
[1760191735145,0.03684562,112220.0,112210.0,0.31226334]
[1760191735646,0.03684562,112220.0,112210.0,0.76140021]
[1760191736441,0.03684562,112220.0,112210.0,0.31226334]
[1760191736641,0.03684562,112220.0,112210.0,0.76140021]
[1760191737244,0.03684562,112220.0,112210.0,0.09710334]
[1760191737448,0.03684562,112220.0,112210.0,0.76140021]
[1760191737848,6.562e-05,112220.0,112210.0,1.16140021]
[1760191738750,6.562e-05,112220.0,112210.0,1.52220021]
[1760191738942,6.562e-05,112220.0,112210.0,1.97133708]
[1760191739143,0.46739683,112250.0,112240.0,0.1060946]
[1760191739451,0.49082663,112250.0,112240.0,0.77051147]
[1760191739650,0.46739683,112250.0,112240.0,0.77051147]
[1760191740148,0.06981683,112250.0,112240.0,1.31603147]
[1760191740353,0.39758,112270.0,112260.0,0.0889987]
[1760191740549,0.42100921,112270.0,112260.0,0.77065557]
[1760191741353,0.42100921,112270.0,112260.0,0.3215187]
[1760191741554,0.42100921,112270.0,112260.0,0.77065557]
[1760191742553,0.42100921,112270.0,112260.0,0.55521557]
[1760191742754,0.42100921,112270.0,112260.0,0.77065557]
[1760191742958,0.42100921,112270.0,112260.0,0.55521557]
[1760191743151,0.42100921,112270.0,112260.0,0.77061557]
[1760191744356,0.42100921,112270.0,112260.0,1.21975244]
[1760191744560,0.39758,112270.0,112260.0,1.21975244]
[1760191745051,0.39758,112270.0,112260.0,0.77061557]
[1760191745253,0.03678,112240.0,112230.0,0.4669025]
[1760191745460,0.03678,112240.0,112230.0,0.55523937]
[1760191745955,0.03678,112240.0,112230.0,0.77067937]
[1760191747353,0.03678,112240.0,112230.0,0.55523937]
[1760191747558,0.03678,112240.0,112230.0,0.77063937]
[1760191749458,0.03678,112240.0,112230.0,0.72122863]
[1760191761373,0.78083545,112250.0,112240.0,0.111795]
[1760191761573,0.80281545,112250.0,112240.0,0.51152113]
[1760191762176,0.80281545,112250.0,112240.0,0.72680113]
[1760191765578,1.16361545,112250.0,112240.0,0.72680113]
[1760191765882,1.16361545,112250.0,112240.0,0.51152113]
[1760191766083,1.16361545,112250.0,112240.0,0.111795]
[1760191766282,1.16361545,112250.0,112240.0,0.327035]
[1760191768585,1.16361545,112250.0,112240.0,0.72676113]
[1760191769580,1.16361545,112250.0,112240.0,0.51152113]
[1760191769785,1.16361545,112250.0,112240.0,0.72672113]
[1760191770781,1.25262255,112250.0,112240.0,0.02278]
[1760191771586,1.25262255,112250.0,112240.0,0.23798]
[1760191771787,1.25262255,112250.0,112240.0,0.02278]
[1760191771981,1.25262255,112250.0,112240.0,0.23798]
[1760191772689,1.25262255,112250.0,112240.0,0.326995]
[1760191773085,1.16361545,112250.0,112240.0,0.326995]
[1760191774083,1.25262255,112250.0,112240.0,0.326995]
[1760191776587,1.25262255,112250.0,112240.0,0.02278]
[1760191776788,0.124578,112240.0,112230.0,0.1118028]
[1760191776988,0.485378,112240.0,112230.0,0.1118028]
[1760191777293,0.485378,112240.0,112230.0,0.23798]
[1760191778293,0.485378,112240.0,112230.0,0.02278]
[1760191778491,0.485378,112240.0,112230.0,0.23798]
[1760191779695,0.485378,112240.0,112230.0,0.327003]
[1760191781998,0.485378,112240.0,112230.0,0.23798]
[1760191784697,0.485378,112240.0,112230.0,0.327003]
[1760191785397,0.39636,112240.0,112230.0,0.327003]
[1760191786900,0.39636,112240.0,112230.0,0.111803]
[1760191787099,0.39636,112240.0,112230.0,0.327003]
[1760191792700,0.03556,112240.0,112230.0,0.72672913]
[1760191792901,1.16313545,112250.0,112240.0,0.110235]
[1760191793100,1.16313545,112250.0,112240.0,0.50996113]
[1760191793706,1.16313545,112250.0,112240.0,0.110235]
[1760191793908,1.25214255,112250.0,112240.0,0.110235]
[1760191794510,1.25214255,112250.0,112240.0,0.325435]
[1760191796107,1.25214255,112250.0,112240.0,0.110235]
[1760191796309,1.25214255,112250.0,112240.0,0.325435]
[1760191797307,1.25214255,112250.0,112240.0,0.110235]
[1760191797610,1.25214255,112250.0,112240.0,0.325435]
[1760191798403,1.25214255,112250.0,112240.0,0.02122]
[1760191798608,1.25214255,112250.0,112240.0,0.23642]
[1760191799310,1.25214255,112250.0,112240.0,0.325435]
[1760191800511,1.16313545,112250.0,112240.0,0.325435]
[1760191802312,1.18679009,112250.0,112240.0,0.325435]
[1760191803316,1.1867938,112250.0,112240.0,0.325435]
[1760191803512,1.16313545,112250.0,112240.0,0.325435]
[1760191804414,1.18679523,112250.0,112240.0,0.325435]
[1760191805410,1.16313545,112250.0,112240.0,0.325435]
[1760191806215,1.27580511,112250.0,112240.0,0.325435]
[1760191806718,1.25214255,112250.0,112240.0,0.325435]
[1760191808817,1.25214255,112250.0,112240.0,0.325395]
[1760191809116,1.27580741,112250.0,112240.0,0.325395]
[1760191809613,1.70184548,112250.0,112240.0,0.325395]
[1760191809808,1.25214255,112250.0,112240.0,0.325395]
[1760191810111,1.70184548,112250.0,112240.0,0.325395]
[1760191811614,1.27580761,112250.0,112240.0,0.77509793]
[1760191811820,1.72551054,112250.0,112240.0,0.77509793]
[1760191812418,1.72551054,112250.0,112240.0,0.325395]
[1760191814621,1.72551054,112250.0,112240.0,0.77509793]
[1760191815016,1.72551054,112250.0,112240.0,0.110235]
[1760191815225,0.1252509,112220.0,112210.0,0.03129494]
[1760191815424,0.93575383,112220.0,112210.0,0.03129494]
[1760191816419,0.93575383,112220.0,112210.0,0.00806494]
[1760191816620,0.93575383,112220.0,112210.0,0.21516]
[1760191817022,0.93575383,112220.0,112210.0,0.23839]
[1760191819024,0.93575383,112220.0,112210.0,0.21516]
[1760191819218,0.93575383,112220.0,112200.0,0.089043]
[1760191819219,0.03622,112210.0,112200.0,0.327473]
[1760191819424,0.84672293,112210.0,112200.0,0.112273]
[1760191819626,0.84672293,112210.0,112200.0,0.327473]
[1760191819921,0.91759749,112210.0,112200.0,0.327473]
[1760191821128,0.1252667,112200.0,112190.0,0.11236638]
[1760191821329,0.93576963,112200.0,112190.0,0.11236638]
[1760191821521,0.93576963,112200.0,112190.0,0.32756638]
[1760191822928,0.93576963,112200.0,112190.0,0.35320146]
[1760191825931,0.4860667,112200.0,112190.0,0.35320146]
[1760191826124,0.93576963,112200.0,112190.0,0.35320146]
[1760191826320,0.84672293,112200.0,112190.0,0.80290439]
[1760191826728,0.84672293,112200.0,112190.0,0.35320146]
[1760191826924,0.84672293,112200.0,112190.0,0.80290439]
[1760191827630,0.93576963,112200.0,112190.0,0.35320146]
[1760191829423,0.84672293,112200.0,112190.0,0.35320146]
[1760191829623,0.84672293,112200.0,112190.0,0.80290439]
[1760191831627,0.84672293,112200.0,112190.0,0.35320146]
[1760191836234,0.84672293,112200.0,112190.0,0.80290439]
[1760191836532,0.84672293,112200.0,112190.0,0.35320146]
[1760191836737,0.84672293,112200.0,112190.0,0.80290439]
[1760191837530,0.84672293,112200.0,112190.0,1.20290439]
[1760191837531,0.39702,112200.0,112190.0,1.20290439]
[1760191837731,0.3608,112200.0,112190.0,1.20290439]
[1760191838132,0.91759749,112210.0,112200.0,0.1122767]
[1760191838430,0.91759749,112210.0,112200.0,0.56197963]
[1760191839635,0.91759749,112210.0,112200.0,0.3275167]
[1760191842841,0.46789456,112210.0,112200.0,0.3275167]
[1760191843043,0.91759749,112210.0,112200.0,0.3275167]
[1760191843343,1.00663629,112210.0,112200.0,0.3275167]
[1760191843640,0.03527,112200.0,112190.0,0.13656326]
[1760191843839,0.84577293,112200.0,112190.0,0.13656326]
[1760191844038,0.84577293,112200.0,112190.0,0.35180326]
[1760191844238,0.84577293,112200.0,112190.0,0.80150619]
[1760191844442,0.39607,112200.0,112190.0,0.80150619]
[1760191845743,0.3608,112200.0,112190.0,1.20150619]
[1760191847243,0.39607,112200.0,112190.0,1.20150619]
[1760191848643,0.89535749,112210.0,112190.0,1.20150619]
[1760191848644,0.07087456,112210.0,112200.0,0.1215067]
[1760191848842,0.01398,112220.0,112210.0,0.0890388]
[1760191849037,0.03544,112220.0,112210.0,0.77577173]
[1760191849540,0.03544,112220.0,112210.0,1.13657173]
[1760191853247,0.48514293,112220.0,112210.0,1.13657173]
[1760191854144,0.03544,112220.0,112210.0,1.13657173]
[1760191860750,0.03544,112220.0,112210.0,0.6868688]
[1760191860950,0.03544,112220.0,112210.0,1.13657173]
[1760191861246,0.48514293,112220.0,112210.0,1.13657173]
[1760191861647,0.48514293,112220.0,112210.0,0.6868688]
[1760191861848,0.03527,112210.0,112200.0,0.4716346]
[1760191862148,0.03527,112210.0,112200.0,0.6868346]
[1760191862347,0.48497293,112210.0,112200.0,1.13653753]
[1760191863044,0.03527,112210.0,112200.0,1.13653753]
[1760191863242,0.48497293,112210.0,112200.0,1.13653753]
[1760191864446,0.55645295,112210.0,112200.0,0.92133753]
[1760191864645,0.55645295,112210.0,112200.0,1.13653753]
[1760191864845,0.55645295,112210.0,112200.0,0.92133753]
[1760191865049,0.55645295,112210.0,112200.0,1.13653753]
[1760191865750,0.10675002,112210.0,112200.0,1.13653753]
[1760191870058,0.64549175,112210.0,112200.0,0.02179]
[1760191870252,1.00629175,112210.0,112200.0,0.23699]
[1760191870551,1.40629175,112210.0,112200.0,0.02179]
[1760191870855,1.40629175,112210.0,112200.0,0.23699]
[1760191871553,1.3566174,112210.0,112200.0,0.23699]
[1760191871854,0.95658882,112210.0,112200.0,0.23699]
[1760191872556,0.95658882,112210.0,112200.0,0.3260367]
[1760191873553,0.46755002,112210.0,112200.0,0.3260367]
[1760191875255,0.10675002,112210.0,112200.0,0.3260367]
[1760191878365,0.07148002,112210.0,112200.0,1.08686528]
[1760191878663,0.01398,112220.0,112210.0,0.0890388]
[1760191878960,0.03636,112220.0,112210.0,0.87124738]
[1760191881661,0.03636,112220.0,112210.0,0.4712188]
[1760191883459,0.00242001,112220.0,112210.0,0.87944738]
[1760191883663,0.03636,112230.0,112220.0,0.1237708]
[1760191883957,0.03636,112230.0,112220.0,0.73915938]
[1760191884563,0.03636,112230.0,112220.0,0.1104108]
[1760191884863,0.1253829,112230.0,112220.0,0.2367]
[1760191885065,0.1253829,112230.0,112220.0,0.3257308]
[1760191885464,0.03636,112230.0,112220.0,0.3257308]
[1760191886059,0.83638858,112230.0,112220.0,0.1104108]
[1760191886260,0.43636,112230.0,112220.0,0.3257308]
[1760191895360,0.02238,112230.0,112220.0,0.3390908]
[1760191896065,0.02238,112230.0,112220.0,1.13911938]
[1760191896666,0.03575,112230.0,112220.0,0.1104108]
[1760191896864,0.03575,112230.0,112220.0,0.3256908]
[1760191902268,0.1247729,112230.0,112220.0,0.3256908]
[1760191904176,0.1247729,112230.0,112220.0,0.1104108]
[1760191904377,0.1247729,112230.0,112220.0,0.3256108]
[1760191910984,0.14877156,112230.0,112220.0,0.3256108]
[1760191911179,0.14877156,112230.0,112220.0,0.02138]
[1760191911481,0.54880014,112230.0,112220.0,0.23658]
[1760191911682,0.14877156,112230.0,112220.0,0.23658]
[1760191911984,0.50957156,112230.0,112220.0,0.23658]
[1760191914887,1.30960014,112230.0,112220.0,0.23658]
[1760191915087,0.90957156,112230.0,112220.0,0.23658]
[1760191915687,1.30960014,112230.0,112220.0,0.23658]
[1760191917687,1.30960014,112230.0,112220.0,0.02138]
[1760191917882,0.03521,112210.0,112200.0,0.4719634]
[1760191918081,0.1242487,112210.0,112200.0,0.3263634]
[1760191918285,0.88507728,112210.0,112200.0,0.02212]
[1760191918481,0.4850487,112210.0,112200.0,0.3264067]
[1760191920690,0.5556384,112210.0,112200.0,0.3264067]
[1760191920881,0.0925397,112210.0,112200.0,0.73463528]
[1760191921083,0.0705897,112210.0,112200.0,1.13463528]
[1760191921285,0.01326,112220.0,112210.0,0.0890387]
[1760191921489,0.03521,112220.0,112210.0,0.1250587]
[1760191922391,0.1242408,112220.0,112210.0,0.1250587]
[1760191923087,0.1242408,112220.0,112210.0,0.1111587]
[1760191924784,0.03521,112220.0,112210.0,0.1111587]
[1760191924989,0.02195,112220.0,112210.0,0.1250587]
[1760191925292,0.1242408,112220.0,112210.0,0.02212]
[1760191925698,0.52426938,112220.0,112210.0,0.02212]
[1760191926193,0.4850408,112220.0,112210.0,0.2374]
[1760191926992,0.88506938,112220.0,112210.0,0.2374]
[1760191927892,0.4850408,112220.0,112210.0,0.2374]
[1760191928390,0.88506938,112220.0,112210.0,0.02212]
[1760191928694,0.1242528,112210.0,112190.0,0.38652186]
[1760191928894,0.88508528,112200.0,112190.0,0.02572186]
[1760191929391,0.88508528,112200.0,112190.0,0.24108186]
[1760191930290,0.88508528,112200.0,112190.0,0.02572186]
[1760191930490,1.10040528,112200.0,112190.0,0.02572186]
[1760191933100,1.50040528,112200.0,112190.0,0.02572186]
[1760191933502,2.0008539,112200.0,112190.0,0.02572186]
[1760191939198,1.1003767,112200.0,112190.0,0.02572186]
[1760191939398,1.5506153,112200.0,112190.0,0.04745186]
[1760191939603,2.0008539,112200.0,112190.0,0.04745186]
[1760191939903,1.5506153,112200.0,112190.0,0.04745186]
[1760191940103,1.3352953,112200.0,112190.0,0.04745186]
[1760191940399,1.5505753,112200.0,112190.0,0.04745186]
[1760191942305,1.3352953,112200.0,112190.0,0.04745186]
[1760191942501,1.5505753,112200.0,112190.0,0.04745186]
[1760191943006,1.5505353,112200.0,112190.0,0.04745186]
[1760191944605,2.0007739,112200.0,112190.0,0.04745186]
[1760191945807,1.5505353,112200.0,112190.0,0.04745186]
[1760191946312,2.0007739,112200.0,112190.0,0.04745186]
[1760191948213,1.1002967,112200.0,112190.0,0.04745186]
[1760191948415,2.0007739,112200.0,112190.0,0.04745186]
[1760191949011,0.9352953,112200.0,112190.0,0.53650646]
[1760191949213,0.9352953,112200.0,112190.0,0.75174646]
[1760191949812,1.3855339,112200.0,112190.0,0.13650646]
[1760191950012,1.3855339,112200.0,112190.0,0.35178646]
[1760191954721,0.9352953,112200.0,112190.0,0.35178646]
[1760191955321,0.95951634,112200.0,112190.0,0.35178646]
[1760191956118,1.40975494,112200.0,112190.0,0.04745186]
[1760191956322,1.62499494,112200.0,112190.0,0.02572186]
[1760191957215,1.62499494,112200.0,112190.0,0.04745186]
[1760191959323,1.62499494,112200.0,112190.0,0.02572186]
[1760191959519,0.0890625,112180.0,112170.0,0.089067]
[1760191959725,0.9365911,112180.0,112170.0,0.02173]
[1760191959929,0.96086036,112180.0,112170.0,0.02173]
[1760191960130,0.96086036,112180.0,112170.0,0.23697]
[1760191960324,0.9365911,112180.0,112170.0,0.23697]
[1760191960523,1.64474299,112180.0,112170.0,0.23697]
[1760191960729,1.64483321,112180.0,112170.0,0.23697]
[1760191961230,1.64483321,112180.0,112170.0,0.25669132]
[1760191961728,1.64483321,112180.0,112170.0,0.34576182]
[1760191961932,1.66907901,112180.0,112170.0,0.34576182]
[1760191962140,1.10553211,112180.0,112170.0,0.34576182]
[1760191962429,1.55577071,112180.0,112170.0,0.34576182]
[1760191962822,1.64483321,112180.0,112170.0,0.34576182]
[1760191963222,1.09236211,112180.0,112170.0,0.80420042]
[1760191964330,0.73156211,112180.0,112170.0,0.80420042]
[1760191965628,0.73156211,112180.0,112170.0,1.20420042]
[1760191965832,0.9350553,112200.0,112190.0,0.02267]
[1760191966032,0.9350553,112200.0,112190.0,0.23795]
[1760191966033,0.95929146,112200.0,112190.0,0.23795]
[1760191966229,0.87024476,112200.0,112190.0,0.3270046]
[1760191966430,0.02171,112200.0,112190.0,1.1906032]
[1760191967837,0.72845303,112200.0,112190.0,1.1906032]
[1760191968035,0.03552,112200.0,112190.0,1.1906032]
[1760191968230,0.39632,112200.0,112190.0,0.7403646]
[1760191968435,0.39632,112200.0,112190.0,1.1906032]
[1760191969335,0.03552,112200.0,112190.0,1.1906032]
[1760191970136,0.4857586,112200.0,112190.0,1.1906032]
[1760191970729,0.73407208,112200.0,112190.0,1.1906032]
[1760191971435,1.18431068,112200.0,112190.0,1.1906032]
[1760191972237,0.73407208,112200.0,112190.0,1.1906032]
[1760191972534,1.18431068,112200.0,112190.0,1.1906032]
[1760191973636,1.17050068,112200.0,112190.0,1.1906032]
[1760191973831,0.72026208,112200.0,112190.0,1.1906032]
[1760191976736,1.17050068,112200.0,112190.0,1.1906032]
[1760191978139,0.72026208,112200.0,112190.0,1.1906032]
[1760191981440,0.72026208,112200.0,112190.0,0.7403646]
[1760191981634,1.27335888,112200.0,112190.0,1.1772432]
[1760191981837,1.27335888,112200.0,112190.0,0.9619632]
[1760191982040,1.27335888,112200.0,112190.0,1.1772032]
[1760191982241,1.27335888,112200.0,112190.0,0.7269646]
[1760191984644,1.27335888,112200.0,112190.0,1.1772032]
[1760191984844,1.27335888,112200.0,112190.0,0.7269646]
[1760191988443,1.27335888,112200.0,112190.0,1.1772032]
[1760191989453,1.27335888,112200.0,112190.0,0.9619632]
[1760191989645,1.27335888,112200.0,112190.0,1.1772032]
[1760191992551,0.82312028,112200.0,112190.0,1.1772032]
[1760191992753,1.27335888,112200.0,112190.0,1.1772032]
[1760191995451,0.82312028,112200.0,112190.0,0.7269646]
[1760191997750,0.72026208,112200.0,112190.0,0.7402246]
[1760191998251,0.80931028,112200.0,112190.0,0.7402246]
[1760191999655,0.72026208,112200.0,112190.0,0.7402246]
[1760192001448,0.80931028,112200.0,112190.0,0.7402246]
[1760192001644,0.82250028,112200.0,112190.0,0.7269646]
[1760192003554,0.82250028,112200.0,112190.0,0.7402246]
[1760192003956,0.73345208,112200.0,112190.0,0.7402246]
[1760192004151,0.72026208,112200.0,112190.0,0.7402246]
[1760192004655,0.72026208,112200.0,112190.0,0.7269646]
[1760192004656,0.82250018,112200.0,112190.0,0.7269646]
[1760192008755,0.82250018,112200.0,112190.0,0.7402246]
[1760192010352,0.73345208,112200.0,112190.0,0.7402246]
[1760192010556,0.73345208,112200.0,112190.0,0.7401846]
[1760192010752,0.72026208,112200.0,112190.0,1.10105313]
[1760192010953,0.46913579,112210.0,112200.0,0.1244881]
[1760192011152,0.49318566,112210.0,112200.0,0.1244881]
[1760192011958,0.58222586,112210.0,112200.0,0.1244881]
[1760192013659,0.58222586,112210.0,112200.0,0.1112281]
[1760192015059,1.30855978,112210.0,112200.0,0.1112281]
[1760192016460,1.30855978,112210.0,112200.0,0.3264281]
[1760192018163,1.21951958,112210.0,112200.0,0.3396881]
[1760192018563,0.83467404,112210.0,112200.0,0.3396881]
[1760192019165,0.82141404,112210.0,112200.0,0.73975663]
[1760192021664,0.82141404,112210.0,112200.0,0.3396881]
[1760192022274,0.91045424,112210.0,112200.0,0.3396881]
[1760192022477,0.92332424,112210.0,112200.0,0.3396881]
[1760192023168,0.92332424,112210.0,112200.0,0.3264281]
[1760192024868,0.92332424,112210.0,112200.0,0.1112281]
[1760192025166,0.92332424,112210.0,112200.0,0.3264281]
[1760192025566,1.28412424,112210.0,112200.0,0.23738]
[1760192027570,1.30816028,112210.0,112200.0,0.23738]
[1760192027764,1.30816028,112210.0,112190.0,0.86317883]
[1760192027765,0.089048,112200.0,112190.0,0.4710259]
[1760192027970,0.124038,112200.0,112190.0,0.6862259]
[1760192031777,0.484838,112200.0,112190.0,0.3254259]
[1760192033375,0.484838,112200.0,112190.0,0.02117]
[1760192033579,0.88490653,112200.0,112190.0,0.23633]
[1760192034280,0.88490653,112200.0,112190.0,0.3253859]
[1760192034579,0.484838,112200.0,112190.0,0.3253859]
[1760192035879,0.484838,112200.0,112190.0,0.1102259]
[1760192036078,0.484838,112200.0,112190.0,0.3253859]
[1760192038177,0.484838,112200.0,112190.0,0.1102259]
[1760192038378,0.484838,112200.0,112190.0,0.3253859]
[1760192039478,0.484838,112200.0,112190.0,0.23633]
[1760192040279,0.484838,112200.0,112190.0,0.3253858]
[1760192041378,0.39579,112200.0,112190.0,0.3253858]
[1760192041571,0.39579,112200.0,112190.0,0.3381758]
[1760192041775,0.39579,112200.0,112190.0,0.73824433]
[1760192041776,0.38292,112200.0,112190.0,0.73824433]
[1760192042080,0.38292,112200.0,112190.0,0.3381758]
[1760192042273,0.02212,112200.0,112190.0,0.3381758]
[1760192042578,0.02212,112200.0,112190.0,0.6989758]
[1760192043075,1.19433404,112210.0,112200.0,0.1102179]
[1760192043276,1.21832804,112210.0,112200.0,0.1230079]
[1760192044777,1.30736804,112210.0,112200.0,0.1230079]
[1760192044976,1.30736838,112210.0,112200.0,0.1230079]
[1760192048580,1.21832838,112210.0,112200.0,0.1230079]
[1760192048781,1.30736838,112210.0,112200.0,0.1230079]
[1760192049378,1.30736838,112210.0,112200.0,0.3253779]
[1760192049877,1.30736838,112210.0,112200.0,0.1102179]
[1760192050181,1.30736838,112210.0,112200.0,0.3253779]
[1760192053384,1.70743691,112210.0,112200.0,0.3253779]
[1760192057187,1.30736838,112210.0,112200.0,0.3253779]
[1760192057486,1.75739288,112210.0,112200.0,0.3253779]
[1760192059188,1.30736838,112210.0,112200.0,0.3253779]
[1760192059585,1.75739288,112210.0,112200.0,0.3253779]
[1760192061188,1.75734519,112210.0,112200.0,0.3253779]
[1760192069391,1.30732069,112210.0,112200.0,0.3253779]
[1760192069591,1.75734519,112210.0,112200.0,0.3253779]
[1760192073291,1.75734519,112210.0,112200.0,0.02117]
[1760192073492,1.75734519,112210.0,112200.0,0.23629]
[1760192077796,1.7573363,112210.0,112200.0,0.23629]
[1760192081999,1.3073118,112210.0,112200.0,0.23629]
[1760192082200,1.7573363,112210.0,112200.0,0.23629]
[1760192084596,1.7573363,112210.0,112200.0,0.02117]
[1760192084796,1.7573363,112210.0,112200.0,0.23629]
[1760192089705,1.7573363,112210.0,112200.0,0.02117]
[1760192089901,0.1106855,112190.0,112180.0,0.9337431]
[1760192090104,0.035,112190.0,112180.0,1.1488231]
[1760192090704,0.02163,112190.0,112180.0,1.1488231]
[1760192092900,0.1240522,112200.0,112190.0,0.0890555]
[1760192093098,1.17221404,112210.0,112200.0,0.1233276]
[1760192093099,1.19384404,112210.0,112200.0,0.1233276]
[1760192093304,0.82017404,112210.0,112200.0,0.7884321]
[1760192093808,1.27019854,112210.0,112200.0,0.7884321]
[1760192094006,0.82017404,112210.0,112200.0,0.7884321]
[1760192097609,1.27019854,112210.0,112200.0,0.7884321]
[1760192099209,1.28356854,112210.0,112200.0,0.3384076]
[1760192099510,1.28356854,112210.0,112200.0,0.7884321]
[1760192100301,1.27019854,112210.0,112200.0,0.7884321]
[1760192100510,0.82017404,112210.0,112200.0,0.7884321]
[1760192103707,0.79854404,112210.0,112200.0,0.7884321]
[1760192103912,0.02163,112210.0,112200.0,0.7884321]
[1760192104116,0.735148,112210.0,112200.0,0.7884321]
[1760192104305,0.02163,112210.0,112200.0,0.7884321]
[1760192104511,0.9136668,112220.0,112210.0,0.1187295]
[1760192104512,0.02163,112220.0,112210.0,0.1187295]
[1760192104713,0.02163,112220.0,112210.0,0.568754]
[1760192105317,0.035,112230.0,112220.0,0.1228916]
[1760192105516,0.035,112230.0,112220.0,1.1487561]
[1760192105809,0.02163,112230.0,112220.0,1.1487561]
[1760192106916,0.3958,112240.0,112230.0,0.1105136]
[1760192107116,1.14206188,112240.0,112230.0,0.5605381]
[1760192107316,0.8458245,112240.0,112230.0,0.1105136]
[1760192108915,0.8468245,112240.0,112230.0,0.1105136]
[1760192109312,0.8468245,112240.0,112230.0,0.5605381]
[1760192109510,0.8468245,112240.0,112230.0,0.5733281]
[1760192110106,0.8468245,112240.0,112230.0,0.1105136]
[1760192111620,1.55381414,112240.0,112230.0,0.1105136]
[1760192114018,1.19301414,112240.0,112230.0,0.1105136]
[1760192114219,1.55381414,112240.0,112230.0,0.1105136]
[1760192117123,1.55381414,112240.0,112230.0,0.5605381]
[1760192117324,1.64282964,112240.0,112230.0,0.5605381]
[1760192117526,1.19280514,112240.0,112230.0,0.02149]
[1760192119229,1.19280514,112240.0,112230.0,0.1105134]
[1760192119819,0.03375,112220.0,112210.0,0.02207]
[1760192120019,0.03375,112200.0,112190.0,0.4847151]
[1760192120225,0.03375,112200.0,112190.0,0.484715]
[1760192120529,0.03375,112200.0,112190.0,0.686925]
[1760192125429,0.52259131,112200.0,112190.0,0.02207]
[1760192125630,0.1228049,112190.0,112180.0,0.02207]
[1760192125831,0.03375,112180.0,112170.0,0.70256062]
[1760192126628,0.03375,112180.0,112170.0,0.48756062]
[1760192126830,0.03375,112180.0,112170.0,0.70256062]
[1760192127431,0.1228128,112180.0,112170.0,0.48756062]
[1760192127629,0.1228128,112180.0,112170.0,0.34176062]
[1760192127932,1.13760711,112180.0,112170.0,0.01561982]
[1760192128130,0.0890751,112170.0,112150.0,0.4498828]
[1760192128433,1.22057458,112170.0,112160.0,0.1111487]
[1760192128625,0.52261941,112170.0,112160.0,0.1111487]
[1760192128821,0.92261941,112170.0,112160.0,0.1111487]
[1760192129026,0.02115,112170.0,112160.0,0.1239387]
[1760192129421,0.02115,112170.0,112160.0,0.88453301]
[1760192129622,0.09278373,112170.0,112160.0,0.88453301]
[1760192130426,0.09278373,112170.0,112160.0,0.4847387]
[1760192131929,0.09278373,112170.0,112160.0,0.1239387]
[1760192132133,0.10538373,112170.0,112160.0,0.1111487]
[1760192132724,0.10538373,112170.0,112160.0,0.02207]
[1760192132725,0.59424994,112170.0,112160.0,0.02207]
[1760192132930,0.59424994,112170.0,112160.0,0.23711]
[1760192133126,0.50517804,112170.0,112160.0,0.3261899]
[1760192133638,0.10538373,112170.0,112160.0,0.3261899]
[1760192134736,0.09278373,112170.0,112160.0,0.73877421]
[1760192135038,0.09278373,112170.0,112160.0,0.3389799]
[1760192136937,0.10538373,112170.0,112160.0,0.3389799]
[1760192137131,0.10538373,112170.0,112160.0,0.1111499]
[1760192137335,0.10538373,112170.0,112160.0,0.3261899]
[1760192137536,0.19445553,112170.0,112160.0,0.3261899]
[1760192137737,0.10538373,112170.0,112160.0,0.3261899]
[1760192138942,0.10538373,112170.0,112160.0,0.1111499]
[1760192139143,0.10538373,112170.0,112160.0,0.3261899]
[1760192139543,0.19445553,112170.0,112160.0,0.02207]
[1760192139742,0.59424984,112170.0,112160.0,0.3261898]
[1760192140144,0.19445553,112170.0,112160.0,0.1111498]
[1760192140442,0.19445553,112170.0,112160.0,0.3261898]
[1760192141747,0.59424984,112170.0,112160.0,0.3261898]
[1760192141942,0.19445553,112170.0,112160.0,0.3261898]
[1760192143137,0.59424984,112170.0,112160.0,0.02207]
[1760192143342,0.12436,112160.0,112150.0,0.01470995]
[1760192143646,0.88495431,112160.0,112150.0,0.23798]
[1760192143948,0.88495431,112160.0,112150.0,0.3270679]
[1760192145149,1.28495431,112160.0,112150.0,0.3270679]
[1760192145448,1.28495431,112160.0,112150.0,0.22975304]
[1760192146055,1.28495431,112160.0,112150.0,0.25269304]
[1760192146243,1.28495431,112160.0,112150.0,0.34178094]
[1760192146654,1.28495431,112160.0,112150.0,0.34182094]
[1760192146851,0.79608,112160.0,112150.0,0.34182094]
[1760192147152,1.19587431,112160.0,112150.0,0.34182094]
[1760192147552,1.28495421,112160.0,112150.0,0.34182094]
[1760192148554,0.79608,112160.0,112150.0,0.34182094]
[1760192148754,1.19587431,112160.0,112150.0,0.34182094]
[1760192149352,1.28495421,112160.0,112150.0,0.34182094]
[1760192150949,0.39608,112160.0,112150.0,0.34182094]
[1760192151145,0.43507431,112160.0,112150.0,0.34182094]
[1760192151352,0.79587431,112160.0,112150.0,0.34182094]
[1760192151552,0.74922993,112170.0,112160.0,0.1120198]
[1760192151553,0.46697373,112170.0,112160.0,0.1120198]
[1760192151849,0.09357373,112170.0,112160.0,0.1248098]
[1760192152958,0.09357373,112170.0,112160.0,0.52460411]
[1760192153159,0.07163373,112170.0,112160.0,0.52460411]
[1760192153353,0.0126,112180.0,112170.0,0.0890719]
[1760192153554,0.03454,112180.0,112170.0,0.3272519]
[1760192154457,0.05830245,112180.0,112170.0,0.3272519]
[1760192158765,0.04570245,112180.0,112170.0,0.73524621]
[1760192159057,0.04570245,112180.0,112170.0,0.3354519]
[1760192160559,0.04570245,112180.0,112170.0,0.6962519]
[1760192160760,0.39608,112190.0,112180.0,0.089064]
[1760192161060,0.04573035,112190.0,112180.0,0.88538831]
[1760192161456,0.72447234,112190.0,112180.0,0.88538831]
[1760192161656,0.02194,112190.0,112180.0,0.485594]
[1760192162064,0.03528,112200.0,112190.0,0.124936]
[1760192162259,0.05907224,112200.0,112190.0,0.340176]